{"text_format":"3","workbook":"xlsx","n_sheets":6,"sheets":["Log Panggilan Penjualan","Info Kontak Klien","Sebelum Panggilan","Panggilan Pertama","Informasi Penjualan","Tindak Lanjut"],"not_rendered":{"defined_names":14},"read":"whole","date_system":"1900"}

{"sheet":"Log Panggilan Penjualan","index":0,"n_rows":13,"n_cols":7,"rows_kept":13}
[null," Nama Perusahaan"]
[null,"Log Panggilan Penjualan"]
[null,"Panggil #","Klien","Perusahaan","Tanggal","Waktu","Catatan"]
[null,1,"Joko Wicaksono\n",{"$f":"IF(LogPanggilanPenjualan[[#This Row],[Klien]]=\"\",\"\",IFERROR(VLOOKUP(LogPanggilanPenjualan[[#This Row],[Klien]],InfoKontakKlien[],2,0),\"Not Found\"))","v":"Proseware, Inc."},{"$f":"TODAY()-5","v":"2017-10-07"},"08:30:00"]
[null,2,"Samuel Limpele\n",{"$f":"IF(LogPanggilanPenjualan[[#This Row],[Klien]]=\"\",\"\",IFERROR(VLOOKUP(LogPanggilanPenjualan[[#This Row],[Klien]],InfoKontakKlien[],2,0),\"Not Found\"))","v":"Litware, Inc."},{"$f":"TODAY()-5","v":"2017-10-07"},"09:00:00"]
[null,3,"Taufik Harahap\n",{"$f":"IF(LogPanggilanPenjualan[[#This Row],[Klien]]=\"\",\"\",IFERROR(VLOOKUP(LogPanggilanPenjualan[[#This Row],[Klien]],InfoKontakKlien[],2,0),\"Not Found\"))","v":"Northwind Traders"},"2017-10-07","09:30:00"]
[null,4,"Agung Raharjo\n",{"$f":"IF(LogPanggilanPenjualan[[#This Row],[Klien]]=\"\",\"\",IFERROR(VLOOKUP(LogPanggilanPenjualan[[#This Row],[Klien]],InfoKontakKlien[],2,0),\"Not Found\"))","v":"Lucerne Publishing"},"2017-10-07","10:00:00"]
[null,5,"Agus Sumarto\n",{"$f":"IF(LogPanggilanPenjualan[[#This Row],[Klien]]=\"\",\"\",IFERROR(VLOOKUP(LogPanggilanPenjualan[[#This Row],[Klien]],InfoKontakKlien[],2,0),\"Not Found\"))","v":"Margie's Travel"},"2017-10-07","10:30:00"]
[null,6,"Joko Wicaksono\n",{"$f":"IF(LogPanggilanPenjualan[[#This Row],[Klien]]=\"\",\"\",IFERROR(VLOOKUP(LogPanggilanPenjualan[[#This Row],[Klien]],InfoKontakKlien[],2,0),\"Not Found\"))","v":"Proseware, Inc."},{"$f":"TODAY()-3","v":"2017-10-09"},"11:00:00"]
[null,7,"Samuel Limpele\n",{"$f":"IF(LogPanggilanPenjualan[[#This Row],[Klien]]=\"\",\"\",IFERROR(VLOOKUP(LogPanggilanPenjualan[[#This Row],[Klien]],InfoKontakKlien[],2,0),\"Not Found\"))","v":"Litware, Inc."},{"$f":"TODAY()-3","v":"2017-10-09"},"11:30:00"]
[null,8,"Joko Wicaksono\n",{"$f":"IF(LogPanggilanPenjualan[[#This Row],[Klien]]=\"\",\"\",IFERROR(VLOOKUP(LogPanggilanPenjualan[[#This Row],[Klien]],InfoKontakKlien[],2,0),\"Not Found\"))","v":"Proseware, Inc."},{"$f":"TODAY()-1","v":"2017-10-11"},"12:00:00"]
[null,9,"Agus Sumarto\n",{"$f":"IF(LogPanggilanPenjualan[[#This Row],[Klien]]=\"\",\"\",IFERROR(VLOOKUP(LogPanggilanPenjualan[[#This Row],[Klien]],InfoKontakKlien[],2,0),\"Not Found\"))","v":"Margie's Travel"},{"$f":"TODAY()-1","v":"2017-10-11"},"12:30:00"]
[null,10,"Agus Sumarto\n",{"$f":"IF(LogPanggilanPenjualan[[#This Row],[Klien]]=\"\",\"\",IFERROR(VLOOKUP(LogPanggilanPenjualan[[#This Row],[Klien]],InfoKontakKlien[],2,0),\"Not Found\"))","v":"Margie's Travel"},{"$f":"TODAY()","v":"2017-10-12"},"13:00:00"]

{"sheet":"Info Kontak Klien","index":1,"n_rows":8,"n_cols":8,"rows_kept":8}
[null,{"$f":"NamaPerusahaan","v":" Nama Perusahaan"}]
[null,"Informasi Kontak Klien"]
[null,"Nama Klien","Nama Perusahaan","Alamat","Kota, Provinsi Kode Pos","Telepon Utama","Telepon Kedua","Email"]
[null,"Samuel Limpele\n","Litware, Inc.","100 Main St","Cherrytown, NH 123456","(541) 555-0135","(541) 555-0136","samuel@litwareinc.com"]
[null,"Agung Raharjo\n","Lucerne Publishing","567 Second Ave","Spaulding, NY 23456","(425) 555-0198","(425) 555-0199","agung@lucernepublishing.com"]
[null,"Agus Sumarto\n","Margie's Travel","987 Orange St","Mountain View, IL 34567","(888) 555-0125","(888) 555-0126","agus@margiestravel.com"]
[null,"Taufik Harahap\n","Northwind Traders","890 N 3rd Ave","Chatham, CA 45678","(541) 555-0175","(541) 555-0176","taufik@northwindtraders.com"]
[null,"Joko Wicaksono\n","Proseware, Inc.","123 Major Dr","Shelbyville, MA 56789","(509) 555-0150","(509) 555-0151","joko@proseware.com"]

{"sheet":"Sebelum Panggilan","index":2,"n_rows":13,"n_cols":3,"rows_kept":13}
[null,{"$f":"NamaPerusahaan","v":" Nama Perusahaan"}]
[null,"Daftar Periksa Panggilan Penjualan"]
[null,"Kotak centang","Sebelum panggilan"]
[null,null,"Tinjau riwayat klien"]
[null,null,"Tinjau riwayat atasan klien"]
[null,null,"Tinjau strategi penjualan & prioritas"]
[null,null,"Tambahkan item"]
[null,null,"Tambahkan item"]
[null,null,"Tambahkan item"]
[null,null,"Tambahkan item"]
[null,null,"Tambahkan item"]
[null,null,"Tambahkan item"]
[null,null,"Tambahkan item"]

{"sheet":"Panggilan Pertama","index":3,"n_rows":13,"n_cols":3,"rows_kept":13}
[null,{"$f":"NamaPerusahaan","v":" Nama Perusahaan"}]
[null,"Daftar Periksa Panggilan Penjualan"]
[null,"Kotak centang","Panggilan pertama"]
[null,null,"Panggilan langsung kepada orang yang sesuai"]
[null,null,"Perkenalan singkat"]
[null,null,"Tambahkan item"]
[null,null,"Tambahkan item"]
[null,null,"Tambahkan item"]
[null,null,"Tambahkan item"]
[null,null,"Tambahkan item"]
[null,null,"Tambahkan item"]
[null,null,"Tambahkan item"]
[null,null,"Tambahkan item"]

{"sheet":"Informasi Penjualan","index":4,"n_rows":13,"n_cols":3,"rows_kept":13}
[null,{"$f":"NamaPerusahaan","v":" Nama Perusahaan"}]
[null,"Daftar Periksa Panggilan Penjualan"]
[null,"Kotak centang","Informasi penjualan"]
[null,null,"Pengenalan produk/layanan yang singkat dan menarik"]
[null,null,"Cakup semua dasar-dasarnya"]
[null,null,"Sebutkan keberadaan di web (misalnya situs web, jejaring sosial)"]
[null,null,"Tambahkan item"]
[null,null,"Tambahkan item"]
[null,null,"Tambahkan item"]
[null,null,"Tambahkan item"]
[null,null,"Tambahkan item"]
[null,null,"Tambahkan item"]
[null,null,"Tambahkan item"]

{"sheet":"Tindak Lanjut","index":5,"n_rows":13,"n_cols":3,"rows_kept":13}
[null,{"$f":"NamaPerusahaan","v":" Nama Perusahaan"}]
[null,"Daftar Periksa Panggilan Penjualan"]
[null,"Kotak centang","Informasi tindak lanjut"]
[null,null,"Info kontak klien"]
[null,null,"Info pribadi klien"]
[null,null,"Preferensi klien"]
[null,null,"Kontak telah dijadwal ulang?"]
[null,null,"Penjualan berhasil?"]
[null,null,"Tambahkan item"]
[null,null,"Tambahkan item"]
[null,null,"Tambahkan item"]
[null,null,"Tambahkan item"]
[null,null,"Tambahkan item"]